fUSD/lending_fUSD_20240702
["ID","MTS","AMOUNT","RATE_DAILY","PERIOD"]
[330904619,1719934242603,-596.3156903,0.00021163,2]
[330904620,1719934242615,-314.23096161,0.00021163,2]
[330904621,1719934242626,-458.39071946,0.00021163,2]
[330904622,1719934242636,-4259.9738215,0.00021163,2]
[330904623,1719934242648,-10630.22494532,0.00021163,2]
[330904624,1719934242659,-142.02399814,0.00021163,2]
[330904625,1719934242668,-171.97600086,0.00021176,2]
[330904626,1719934242679,-3155.20621914,0.00021176,2]
[330904627,1719934242688,-3327.18222,0.0002139,2]
[330904628,1719934242697,-500.0,0.00022465,4]
[330904629,1719934242706,-500.0,0.00022465,4]
[330904630,1719934242716,-500.0,0.00022465,4]
[330904631,1719934242727,-188.80625025,0.00022517,2]
[330904632,1719934242736,-327.16438361,0.00022561,2]
[330904633,1719934242745,-500.0,0.00022772,4]
[330904634,1719934242755,-4236.440927,0.00022783,3]
[330904635,1719934242766,-291.65588544,0.00022783,3]
[330904636,1719934242778,-852.07519138,0.00022783,3]
[330904637,1719934242788,-165.42960644,0.00022786,2]
[330904638,1719934242797,-3185.81513608,0.00022788,2]
[330904639,1719934242807,-8017.87080382,0.00022788,3]
[330904640,1719934242816,-7500.0,0.00022789,2]
[330904641,1719934242825,-500.0,0.00022791,4]
[330904642,1719934242835,-500.0,0.00022791,4]
[330904643,1719934242845,-500.0,0.00022791,4]
[330904644,1719934242854,-500.0,0.00022791,4]
[330904645,1719934242864,-500.0,0.00022791,4]
[330904646,1719934242874,-327.97,0.00022791,4]
[330904647,1719934242886,-500.0,0.00022791,4]
[330904648,1719934242896,-896.53,0.00022791,4]
[330904649,1719934242905,-2305.73908598,0.00022791,4]
[330904650,1719934242941,-500.0,0.00022772,4]
[330904651,1719934242951,-2202.22081626,0.00022791,4]
[330904652,1719934242965,-812.43420785,0.00022791,4]
[330904653,1719934242979,-7000.0,0.00022791,4]
[330904654,1719934242990,-2501.34418487,0.00022791,4]
[330904657,1719934243102,-574.92905729,0.00021163,2]
[330904658,1719934243114,-610.0,0.00021163,2]
[330904659,1719934243125,-472.07094271,0.00021163,2]
[330904660,1719934243135,-247.0,0.00021825,2]
[330904661,1719934243145,-247.0,0.0002205,2]
[330904662,1719934243154,-247.0,0.00022275,2]
[330904663,1719934243163,-500.0,0.00022465,4]
[330904664,1719934243172,-247.0,0.000225,2]
[330904665,1719934243182,-500.0,0.00022562,4]
[330904666,1719934243191,-247.0,0.00022725,2]
[330904667,1719934243201,-4825.33170504,0.00022791,4]
[330904668,1719934243210,-500.0,0.00022791,4]
[330904669,1719934243221,-472.63,0.00022791,4]
[330904670,1719934243230,-500.0,0.00022792,4]
[330904671,1719934243239,-500.0,0.00022792,4]
[330904672,1719934243248,-500.0,0.00022792,4]
[330904673,1719934243257,-764.07,0.00022792,4]
[330904674,1719934243266,-503.28,0.00022792,4]
[330904675,1719934243275,-380.92,0.00022792,4]
[330904676,1719934243284,-500.0,0.00022792,4]
[330904677,1719934243293,-500.0,0.00022792,4]
[330904678,1719934243301,-500.0,0.00022792,4]
[330904679,1719934243311,-500.0,0.00022792,4]
[330904680,1719934243320,-500.0,0.00022792,4]
[330904681,1719934243330,-500.0,0.00022792,4]
[330904682,1719934243339,-500.0,0.00022792,4]
[330904683,1719934243353,-500.0,0.00022792,4]
[330904684,1719934243362,-500.0,0.00022792,4]
[330904685,1719934243371,-500.0,0.00022792,4]
[330904686,1719934243381,-896.53,0.00022792,4]
[330904687,1719934243390,-8416.86,0.00022792,4]
[330904688,1719934243399,-12433.13573457,0.00022792,4]
[330904689,1719934243410,-7213.93426543,0.00022792,4]
[330904690,1719934243419,-500.0,0.00022792,4]
[330904691,1719934243429,-500.0,0.00022793,2]
[330904692,1719934243437,-23424.93436518,0.00022793,2]
[330904693,1719934243449,-37315.19999999,0.00022793,2]
[330904696,1719934243473,-500.0,0.00022792,4]
[330904697,1719934243482,-3523.30826427,0.00022793,2]
[330904698,1719934243493,-670.0,0.00022793,2]
[330904699,1719934243504,-677.64364122,0.00022793,2]
[330904700,1719934243516,-179388.91372934,0.00022793,2]
[330904701,1719934243525,-176.47864197,0.00022793,2]
[330904703,1719934243534,-800.0,0.00022795,2]
[330904704,1719934243543,-800.0,0.00022795,2]
[330904705,1719934243552,-800.0,0.00022795,2]
[330904706,1719934243562,-3185.81513608,0.00022798,2]
[330904707,1719934243571,-490.0,0.000228,5]
[330904708,1719934243580,-191.0,0.000228,5]
[330904709,1719934243589,-5000.0,0.00022807,2]
[330904710,1719934243599,-3185.81513608,0.00022809,2]
[330904711,1719934243608,-171.86555575,0.00022809,2]
[330904712,1719934243617,-174.87006478,0.0002281,2]
[330904713,1719934243626,-3185.81513608,0.00022819,2]
[330904714,1719934243635,-8017.87080382,0.00022828,3]
[330904715,1719934243645,-3185.81513608,0.00022829,2]
[330904716,1719934243655,-5000.0,0.00022836,2]
[330904717,1719934243664,-3185.81513608,0.00022839,2]
[330904718,1719934243674,-5000.0,0.00022841,2]
[330904719,1719934243684,-3185.81513608,0.00022849,2]
[330904720,1719934243694,-171.86555575,0.0002285,2]
[330904721,1719934243704,-8017.87080382,0.00022852,3]
[330904722,1719934243714,-3185.81513608,0.00022859,2]
[330904723,1719934243724,-8017.87080382,0.0002286,3]
[330904724,1719934243733,-8017.87080382,0.00022862,3]
[330904725,1719934243743,-3185.81513608,0.0002287,2]
[330904726,1719934243753,-5000.0,0.00022872,2]
[330904727,1719934243762,-3185.81513608,0.0002288,2]
[330904728,1719934243771,-500.0,0.0002288,4]
[330904729,1719934243781,-764.07,0.0002288,4]
[330904730,1719934243790,-503.28,0.0002288,4]
[330904731,1719934243800,-500.0,0.0002288,4]
[330904732,1719934243809,-500.0,0.0002288,4]
[330904733,1719934243818,-500.0,0.0002288,4]
[330904734,1719934243827,-8416.86,0.0002288,4]
[330904735,1719934243836,-500.0,0.00022882,4]
[330904736,1719934243845,-197.59758404,0.00022888,2]
[330904737,1719934243854,-178.56513743,0.00022889,2]
[330904738,1719934243864,-165.42960644,0.00022889,2]
[330904739,1719934243873,-178.56513742,0.00022889,2]
[330904740,1719934243884,-178.56513742,0.0002289,2]
[330904741,1719934243896,-178.56513742,0.0002289,2]
[330904742,1719934243906,-171.86555575,0.0002289,2]
[330904743,1719934243915,-3185.81513608,0.0002289,2]
[330904744,1719934243926,-521.35091856,0.0002289,2]
[330904745,1719934243935,-500.0,0.0002289,4]
[330904746,1719934243945,-500.0,0.0002289,4]
[330904747,1719934243954,-500.0,0.0002289,4]
[330904748,1719934243965,-463.98,0.0002289,4]
[330904749,1719934243976,-500.0,0.0002289,4]
[330904750,1719934243985,-500.0,0.0002289,4]
[330904751,1719934243994,-896.53,0.0002289,4]
[330904752,1719934244003,-19647.07,0.0002289,4]
[330904753,1719934244013,-209.73197584,0.00022891,2]
[330904754,1719934244022,-5919.74692949,0.00022891,2]
[330904755,1719934244031,-500.0,0.00022891,4]
[330904756,1719934244040,-500.0,0.00022891,4]
[330904757,1719934244049,-764.07,0.00022891,4]
[330904758,1719934244059,-395.9,0.00022891,4]
[330904759,1719934244068,-503.28,0.00022891,4]
[330904760,1719934244077,-500.0,0.00022891,4]
[330904761,1719934244087,-500.0,0.00022891,4]
[330904762,1719934244096,-500.0,0.00022891,4]
[330904763,1719934244236,-8416.86,0.00022891,4]
[330904764,1719934244270,-500.0,0.00022891,4]
[330904765,1719934244280,-778.02154041,0.00022892,10]
[330904766,1719934244289,-169.71864522,0.00022892,2]
[330904768,1719934244299,-24639.44045413,0.00022892,2]
[330904769,1719934244309,-2000.0,0.00022892,2]
[330904770,1719934244318,-200.0,0.00022892,2]
[330904771,1719934244328,-448.06132112,0.00022892,2]
[330904772,1719934244337,-4279.14032286,0.00022892,15]
[330904773,1719934244350,-550.47298576,0.00022892,2]
[330904774,1719934244361,-581.33393112,0.00022892,2]
[330904775,1719934244371,-155.0,0.00022892,2]
[330904776,1719934244381,-1000.0,0.00022892,2]
[330904777,1719934244390,-1006.00125693,0.00022892,2]
[330904778,1719934244399,-500.0,0.00022892,4]
[330904779,1719934244408,-500.0,0.00022892,4]
[330904780,1719934244418,-200.0,0.00022892,2]
[330904781,1719934244428,-500.0,0.00022892,4]
[330904782,1719934244437,-500.0,0.00022892,4]
[330904783,1719934244446,-151.0,0.00022892,2]
[330904784,1719934244456,-764.07,0.00022892,4]
[330904785,1719934244465,-764.07,0.00022892,4]
[330904786,1719934244475,-503.28,0.00022892,4]
[330904787,1719934244485,-503.28,0.00022892,4]
[330904788,1719934244494,-500.0,0.00022892,4]
[330904789,1719934244504,-500.0,0.00022892,4]
[330904790,1719934244514,-500.0,0.00022892,4]
[330904791,1719934244524,-500.0,0.00022892,4]
[330904792,1719934244534,-500.0,0.00022892,4]
[330904793,1719934244544,-500.0,0.00022892,4]
[330904794,1719934244555,-165.92,0.00022892,4]
[330904795,1719934244565,-500.0,0.00022892,4]
[330904796,1719934244575,-500.0,0.00022892,4]
[330904797,1719934244586,-464.54,0.00022892,4]
[330904798,1719934244598,-561.73,0.00022892,4]
[330904799,1719934244607,-500.0,0.00022892,2]
[330904800,1719934244618,-500.0,0.00022892,4]
[330904801,1719934244628,-500.0,0.00022892,4]
[330904802,1719934244638,-896.53,0.00022892,4]
[330904803,1719934244647,-896.53,0.00022892,4]
[330904804,1719934244658,-8416.86,0.00022892,4]
[330904805,1719934244668,-8416.86,0.00022892,4]
[330904806,1719934244677,-19647.07,0.00022892,4]
[330904807,1719934244688,-19647.07,0.00022892,4]
[330904808,1719934244697,-760.98,0.00022892,4]
[330904809,1719934244706,-760.98,0.00022892,4]
[330904810,1719934244716,-500.0,0.00022892,4]
[330904811,1719934244727,-210520.62987099,0.00022893,7]
[330904812,1719934244736,-210450.04265852,0.00022893,7]
[330904813,1719934244745,-4235.04,0.00022896,2]
[330904814,1719934244754,-500.0,0.00022899,4]
[330904815,1719934244763,-1014.38107378,0.000229,2]
[330904816,1719934244776,-3398.20892622,0.000229,2]
[330904817,1719934244785,-914.0,0.000229,11]
[330904818,1719934244794,-751.988,0.000229,2]
[330904819,1719934244804,-751.988,0.000229,2]
[330904820,1719934244813,-1000.0,0.000229,2]
[330904821,1719934244823,-158.0720407,0.00022908,2]
[330904822,1719934244832,-150.8,0.00022914,2]
[330904823,1719934244841,-528.33,0.00022929,2]
[330904824,1719934244851,-528.33,0.00022929,2]
[330904825,1719934244860,-150.0,0.00022929,2]
[330904826,1719934244869,-618.91803308,0.00022929,2]
[330904827,1719934244881,-229.44196692,0.00022929,2]
[330904828,1719934244895,-150.0,0.00022929,2]
[330904829,1719934244905,-241.38808146,0.00022929,2]
[330904830,1719934244940,-500.0,0.0002288,4]
[330904831,1719934244950,-270.60258822,0.00022891,4]
[330904832,1719934244964,-229.39741178,0.00022891,4]
[330904833,1719934244976,-182.85191854,0.00022929,2]
[330904834,1719934244985,-247.0,0.0002295,2]
[330904835,1719934244994,-223.0,0.00022956,30]
[330904836,1719934245003,-223.0,0.00022959,30]
[330904837,1719934245016,-508.0,0.00022959,30]
[330904838,1719934245026,-508.0,0.00022959,30]
[330904839,1719934245036,-174.87006478,0.00022962,2]
[330904840,1719934245045,-5000.0,0.00022966,2]
[330904841,1719934245055,-150.5,0.00022966,30]
[330904842,1719934245065,-223.0,0.00022966,30]
[330904843,1719934245075,-223.0,0.00022969,30]
[330904844,1719934245084,-508.0,0.00022969,30]
[330904845,1719934245094,-138.67139316,0.00022969,30]
[330904846,1719934245108,-369.32860684,0.00022969,30]
[330904847,1719934245118,-71.66376565,0.00022969,30]
[330904850,1719934246036,-1830.0,0.00021163,2]
[330904852,1719934246045,-367.79675111,0.00021605,2]
[330904857,1719934246403,-2959.38546889,0.00021605,2]
[330904858,1719934246413,-1054.67,0.00022107,2]
[330904859,1719934246422,-1000.0,0.00022625,2]
[330904860,1719934246431,-500.0,0.00022892,4]
[330904861,1719934246441,-959.0,0.00022893,2]
[330904862,1719934246450,-436.33623435,0.00022969,30]
[330904863,1719934246459,-223.0,0.00022969,30]
[330904864,1719934246468,-511.41,0.0002297,30]
[330904865,1719934246479,-225.0,0.0002297,30]
[330904866,1719934246489,-764.07,0.00022973,4]
[330904867,1719934246498,-503.28,0.00022973,4]
[330904868,1719934246507,-500.0,0.00022973,4]
[330904869,1719934246517,-500.0,0.00022973,4]
[330904870,1719934246526,-896.53,0.00022973,4]
[330904871,1719934246535,-1857.01832431,0.00022973,4]
[330904872,1719934246547,-6559.84167569,0.00022973,4]
[330904873,1719934246556,-3071.52019919,0.00022973,4]
[330904874,1719934246568,-250.10479714,0.00022973,4]
[330904875,1719934246580,-918.75679,0.00022973,4]
[330904876,1719934246592,-907.5,0.00022973,4]
[330904877,1719934246604,-12931.44195846,0.00022973,4]
[330904878,1719934246615,-1523.78274965,0.00022973,4]
[330904879,1719934246627,-43.96350556,0.00022973,4]
[330904880,1719934246636,-310.75725806,0.00022974,2]
[330904881,1719934246647,-1046.16984044,0.00022974,2]
[330904882,1719934246656,-1356.9270985,0.00022974,2]
[330904883,1719934246665,-1356.9270985,0.00022974,2]
[330904884,1719934246675,-1356.9270985,0.00022974,2]
[330904885,1719934246684,-1356.9270985,0.00022974,2]
[330904886,1719934246693,-934.29643939,0.00022974,2]
[330904887,1719934246704,-1716.63276696,0.00022974,2]
[330904929,1719934601922,716.72183852,0.00011199,2]
[330904930,1719934608212,790.88156997,0.00011199,2]
[330904932,1719934620460,4028156.00006426,0.000225,120]
[330904935,1719934644982,150.0,0.00011199,2]
[330904936,1719934645005,150.0,0.00011199,2]
[330904937,1719934645030,150.0,0.00011199,2]
[330904938,1719934645057,41.61691634,0.00011199,2]
[330904939,1719934649786,108.38308366,0.00011199,2]
[330904940,1719934649809,150.0,0.00011199,2]
[330904941,1719934649832,51.61691634,0.00011199,2]
[330904943,1719934662780,98.38308366,0.00011199,2]
[330904944,1719934662802,143.74146166,0.00011199,2]
[330904953,1719934683887,6.25853834,0.00011199,2]
[330904954,1719934683910,150.0,0.00011199,2]
[330904955,1719934683940,103.97852658,0.00011199,2]
[330904964,1719934688700,1200.0,0.00011199,2]
[330904965,1719934689081,300.0,0.00011199,2]
[330904973,1719934694288,300.3037125,0.00011199,2]
[330904975,1719934711292,150.5,0.0001499,30]
[330904976,1719934711353,150.5,0.0001499,30]
[330904977,1719934711523,150.5,0.0001499,30]
[330904978,1719934711858,150.5,0.0001498,30]
[330904979,1719934712386,150.5,0.0001497,30]
[330904980,1719934712418,203.0,0.0001499,30]
[330904981,1719934713008,203.0,0.0001498,30]
[330904982,1719934714554,203.0,0.0001497,30]
[330904994,1719934722237,218.33478864,0.00011199,2]
[330904999,1719934727829,205.92304571,0.00011199,2]
[330905006,1719934830166,150.5,0.0001499,30]
[330905007,1719934832309,150.5,0.0001499,30]
[330905008,1719934832658,150.5,0.0001498,30]
[330905009,1719934833172,150.5,0.0001497,30]
[330905042,1719934951701,150.5,0.0001499,30]
[330905043,1719934952161,150.5,0.0001498,30]
[330905044,1719934952659,150.5,0.0001497,30]
[330905072,1719935071116,150.5,0.0001499,30]
[330905073,1719935071583,150.5,0.0001499,30]
[330905074,1719935071614,290.0,0.0001498,30]
[330905075,1719935072081,150.5,0.0001498,30]
[330905076,1719935072554,219.0,0.0001497,30]
[330905083,1719935119515,273.309825,0.0002465,60]
[330905090,1719935156828,151.0,0.0002465,60]
[330905094,1719935220780,151.0,0.0002465,60]
[330905126,1719935431939,-412.61839352,0.00012273,2]
[330905127,1719935431949,-158.43957202,0.00013483,2]
[330905128,1719935431958,-300.0,0.00013583,2]
[330905129,1719935431967,-265.94203446,0.00013584,2]
[330905130,1719935431979,-718.42740746,0.00013584,2]
[330905131,1719935432002,-10709.01956434,0.00013584,2]
[330905132,1719935432014,-6201.7,0.00013584,2]
[330905133,1719935432068,-571.61940899,0.00013584,2]
[330905134,1719935432079,-909.67996557,0.00013584,2]
[330905135,1719935432089,-11241.74603948,0.00013584,2]
[330905136,1719935432100,-582.92504737,0.00013584,2]
[330905137,1719935432111,-1324.76351156,0.00013584,2]
[330905138,1719935432122,-28450.141312,0.00013584,2]
[330905139,1719935432136,-268.81474869,0.00013584,2]
[330905140,1719935432147,-82297.03572288,0.00013584,2]
[330905157,1719935437849,-89123.35461932,0.00013584,2]
[330905158,1719935437861,-6360.89999999,0.00013584,2]
[330905159,1719935438017,-1691.89919189,0.00013584,2]
[330905160,1719935438029,-345.0,0.00013584,2]
[330905161,1719935438041,-7311.42628983,0.00013584,2]
[330905162,1719935438065,-2594.64763549,0.00013584,2]
[330905163,1719935438076,-3646.45277639,0.00013584,2]
[330905164,1719935438087,-71373.63512934,0.00013584,2]
[330905165,1719935438145,-1646.86959495,0.00013584,2]
[330905167,1719935438155,-1716.7885,0.0001376,2]
[330905168,1719935438164,-2222.42652399,0.00013799,2]
[330905170,1719935438174,-150.0,0.00013836,2]
[330905172,1719935438183,-380.19442756,0.00013859,2]
[330905174,1719935438193,-499.99,0.00013859,2]
[330905176,1719935438202,-212.2814,0.000139,2]
[330905178,1719935438211,-309.21512156,0.00013918,2]
[330905180,1719935438220,-188.80625026,0.0001399,2]
[330905182,1719935438230,-461.77519824,0.00014,2]
[330905184,1719935438239,-1000.0,0.00014,2]
[330905186,1719935438247,-548670.13343429,0.00014,2]
[330905188,1719935438259,-442.91929343,0.00014,2]
[330905250,1719935440090,-930.0,0.00014,2]
[330905251,1719935440101,-589.56767004,0.00014,2]
[330905252,1719935440113,-583.68376119,0.00014,2]
[330905253,1719935440125,-22820.80713084,0.00014,2]
[330905254,1719935440157,-423496.6481443,0.00014,2]
[330905255,1719935440168,-20684.295,0.00014,2]
[330905256,1719935440179,-5466.90328584,0.00014,2]
[330905257,1719935440190,-661.20738584,0.00014,2]
[330905258,1719935440202,-664.35000011,0.00014,2]
[330905259,1719935440213,-512.86496022,0.00014,2]
[330905260,1719935440225,-32071.09744606,0.00014,2]
[330905261,1719935440236,-692.43249975,0.00014,2]
[330905262,1719935440248,-2923.62999489,0.00014,2]
[330905263,1719935440260,-6225.8685315,0.00014,2]
[330905264,1719935440276,-500.0,0.00014,2]
[330905265,1719935440483,-1347.10578871,0.00014,2]
[330905266,1719935440495,-5238.93908545,0.00014,2]
[330905267,1719935440546,-11135.60707275,0.00014,2]
[330905268,1719935440557,-1146.45957175,0.00014,2]
[330905269,1719935440570,-751.980007,0.00014,2]
[330905270,1719935440581,-507.65898413,0.00014,2]
[330905271,1719935440593,-39280.72455278,0.00014,2]
[330905272,1719935440604,-2028.19920913,0.00014,2]
[330905273,1719935440636,-9218.72533039,0.00014,2]
[330905275,1719935440648,-1130.54686907,0.00014,2]
[330905276,1719935440659,-34681.19919592,0.00014,2]
[330905285,1719935442915,-443.4506406,0.00014,2]
[330905286,1719935442930,-18283.51431937,0.00014,2]
[330905287,1719935442942,-374.72962927,0.00014,2]
[330905288,1719935442954,-293.80853246,0.00014,2]
[330905289,1719935442966,-1728.53770147,0.00014,2]
[330905290,1719935442985,-10702.70300256,0.00014,2]
[330905291,1719935442996,-22156.93700891,0.00014,2]
[330905292,1719935443007,-1279.97005618,0.00014,2]
[330905293,1719935443018,-419.87653924,0.00014,2]
[330905294,1719935443048,-917.79,0.00014,2]
[330905295,1719935443060,-264.67910129,0.00014,2]
[330905296,1719935443119,-851.90336111,0.00014,2]
[330905297,1719935443130,-508.1055248,0.00014,2]
[330905298,1719935443141,-701.33067573,0.00014,2]
[330905299,1719935443152,-833.87987711,0.00014,2]
[330905300,1719935443163,-378.703701,0.00014,2]
[330905301,1719935443174,-3865.81,0.00014,2]
[330905302,1719935443186,-2826.20126348,0.00014,2]
[330905303,1719935443201,-613.09825755,0.00014,2]
[330905304,1719935443212,-371.88983172,0.00014,2]
[330905305,1719935443223,-21553.9592446,0.00014,2]
[330905306,1719935443236,-697.39124285,0.00014,2]
[330905307,1719935443248,-35742.82117363,0.00014,2]
[330905308,1719935443267,-333.18053612,0.00014,2]
[330905309,1719935443278,-5240.08156891,0.00014,2]
[330905310,1719935443317,-333.32123765,0.00014,2]
[330905326,1719935445872,-285.63368248,0.00014,2]
[330905330,1719935445884,-1197.39698254,0.00014,2]
[330905354,1719935445995,-831.51467711,0.00014,2]
[330905357,1719935446007,-24744.4,0.00014,2]
[330905359,1719935446019,-1335.3493425,0.00014,2]
[330905362,1719935446030,-4489.50515635,0.00014,2]
[330905364,1719935446042,-3332.49280195,0.00014,2]
[330905367,1719935446075,-642.52569257,0.00014,2]
[330905373,1719935446140,-547.84176427,0.00014,2]
[330905375,1719935446152,-20160.27129854,0.00014,2]
[330905377,1719935446162,-250.0,0.00014018,2]
[330905379,1719935446170,-500.0,0.00014193,2]
[330905381,1719935446180,-1000.0,0.00014276,2]
[330905383,1719935446189,-162.5,0.00014297,2]
[330905384,1719935446198,-552.52,0.00014379,2]
[330905385,1719935446207,-900.0,0.000145,2]
[330905386,1719935446217,-2222.42652395,0.00014597,2]
[330905387,1719935446226,-14479.73995015,0.00014673,2]
[330905388,1719935446238,-1853.9365,0.00014673,2]
[330905389,1719935446249,-681.51930103,0.00014673,2]
[330905390,1719935446261,-59.49424882,0.00014673,2]
[330905391,1719935446275,-440.50575118,0.00014755,7]
[330905394,1719935446290,-7326.92951588,0.00014755,7]
[330905396,1719935446302,-3946.5,0.00014755,7]
[330905397,1719935446315,-7265.7,0.00014755,7]
[330905398,1719935446327,-719.95798759,0.00014755,7]
[330905668,1719935501573,-1691.89919189,0.00012173,2]
[330905704,1719936152284,3787.38361081,0.00011199,2]
[330905723,1719936270769,150.0,0.00021923,120]
[330905724,1719936331315,673.1,0.00011426,2]
[330905725,1719936331516,150.0,0.00023819,120]
[330905727,1719936524139,888.42211868,0.00011199,2]
[330905729,1719936548535,2031.57466037,0.00011199,2]
[330905730,1719936552720,533.28582048,0.00011199,2]
[330905733,1719936570819,150.0,0.00022475,120]
[330905753,1719936632823,-300.0,0.00012272,2]
[330905754,1719936632880,-344.0,0.00012272,2]
[330905755,1719936632890,-1054.76250323,0.00013128,2]
[330905756,1719936632899,-200.0,0.00013254,2]
[330905757,1719936632909,-176.38,0.00013266,2]
[330905758,1719936632918,-1226.68,0.00013313,2]
[330905759,1719936632927,-250.0,0.00013313,2]
[330905760,1719936632937,-274.6897,0.00013484,2]
[330905761,1719936632946,-300.0,0.000136,2]
[330905762,1719936632955,-18172.6880733,0.00013601,2]
[330905763,1719936632967,-5727.3119267,0.00013601,2]
[330905764,1719936632980,-153.24,0.00013629,2]
[330905765,1719936632991,-153.24,0.0001368,2]
[330905766,1719936633001,-1429.93,0.0001368,2]
[330905767,1719936633010,-673.1,0.0001369,2]
[330905768,1719936633020,-800.0,0.00013694,2]
[330905769,1719936633029,-10000.0,0.00013699,2]
[330905770,1719936633040,-182.07,0.00013699,2]
[330905771,1719936633049,-153.24,0.00013731,2]
[330905772,1719936633058,-155.0,0.00013736,2]
[330905773,1719936633068,-167.57,0.0001374,2]
[330905774,1719936633077,-647.26467047,0.00013759,2]
[330905775,1719936633087,-153.24,0.00013782,2]
[330905776,1719936633097,-491.89919189,0.00013802,2]
[330905777,1719936633106,-153.24,0.00013832,2]
[330905778,1719936633116,-250.0,0.00013837,2]
[330905779,1719936633126,-153.24,0.00013883,2]
[330905780,1719936633135,-202.55338166,0.00013889,2]
[330905781,1719936633145,-443.85598899,0.00013889,2]
[330905782,1719936633154,-153.24,0.00013934,2]
[330905783,1719936633163,-153.24,0.00013984,2]
[330905784,1719936633173,-461.77519824,0.00014,2]
[330905785,1719936633182,-153.24,0.00014035,2]
[330905786,1719936633191,-153.24,0.00014086,2]
[330905787,1719936633201,-900.0,0.00014099,2]
[330905788,1719936633211,-153.24,0.00014137,2]
[330905789,1719936633221,-2000.0,0.00014185,3]
[330905790,1719936633231,-153.24,0.00014187,2]
[330905791,1719936633244,-153.24,0.00014238,2]
[330905792,1719936633254,-1692.0,0.00014265,2]
[330905793,1719936633264,-500.0,0.00014273,2]
[330905794,1719936633273,-499.99,0.00014273,2]
[330905795,1719936633283,-153.24,0.00014289,2]
[330905796,1719936633292,-153.24,0.0001434,2]
[330905797,1719936633302,-155.0,0.00014393,2]
[330905798,1719936633312,-415.49090939,0.00014414,2]
[330905799,1719936633325,-3000.0,0.0001453,2]
[330905800,1719936633336,-686.84,0.00014658,2]
[330905801,1719936633347,-1830.49630748,0.00014755,7]
[330905802,1719936633357,-1213.09299057,0.00014755,7]
[330905803,1719936633367,-839.92857098,0.000148,2]
[330905804,1719936633377,-3767.4518,0.000148,2]
[330905805,1719936633386,-2049.28184954,0.00014854,2]
[330905806,1719936633396,-438.2805,0.000149,2]
[330905807,1719936633405,-17269.4566,0.000149,2]
[330905808,1719936633415,-35009.9324,0.000149,2]
[330905809,1719936633424,-2550.0931,0.000149,2]
[330905810,1719936633434,-698.4351,0.000149,2]
[330905811,1719936633443,-1252.7833,0.000149,2]
[330905812,1719936633453,-4291.7394,0.000149,2]
[330905813,1719936633463,-2841.727,0.000149,2]
[330905814,1719936633472,-5854.2673,0.000149,2]
[330905815,1719936633482,-176.81979758,0.000149,2]
[330905816,1719936633492,-5321.75634868,0.000149,2]
[330905817,1719936633502,-321.18543508,0.000149,2]
[330905818,1719936633511,-582.53230421,0.000149,2]
[330905819,1719936633521,-298.47,0.00014954,2]
[330905820,1719936633531,-155.92035539,0.0001499,2]
[330905821,1719936633540,-816.55,0.0001499,2]
[330905822,1719936633549,-816.55,0.0001499,2]
[330905823,1719936633559,-816.55,0.0001499,2]
[330905824,1719936633569,-816.55,0.0001499,2]
[330905825,1719936633579,-816.55,0.0001499,2]
[330905826,1719936633588,-157.28134079,0.00014999,2]
[330905827,1719936633597,-500.0,0.00014999,2]
[330905828,1719936633607,-500.0,0.00014999,2]
[330905829,1719936633616,-500.0,0.00014999,2]
[330905830,1719936633626,-492.6885797,0.00014999,2]